bitfinex/quotes_SOLUSD_20240708
["timestamp","ask_amount","ask_price","bid_price","bid_amount"]
[1720459851735,7.2743,137.47,137.41,18.1932]
[1720459852038,6.4645202,137.48,137.43,7.2762]
[1720459852246,6.4645202,137.48,137.42,100.0]
[1720459852447,0.0205202,137.48,137.45,0.17]
[1720459852632,0.0205202,137.48,137.42,107.2766]
[1720459852826,0.0205202,137.48,137.43,7.4464]
[1720459853029,0.0205202,137.48,137.45,0.17]
[1720459853225,0.0205202,137.48,137.43,7.2763]
[1720459853457,0.0205202,137.48,137.43,0.17]
[1720459854024,0.0205202,137.48,137.41,0.17]
[1720459854336,7.2749,137.46,137.4,0.17]
[1720459854539,7.2744,137.47,137.4,107.4478]
[1720459854735,7.2943202,137.48,137.42,100.0]
[1720459854938,20.0,137.47,137.42,100.0]
[1720459855249,7.2944202,137.48,137.42,100.0]
[1720459855471,20.0,137.47,137.42,100.0]
[1720459855676,20.0,137.47,137.4,100.17]
[1720459855854,20.0,137.47,137.4,100.0]
[1720459856038,0.0205202,137.48,137.4,100.0]
[1720459856241,0.1905202,137.48,137.4,100.0]
[1720459856463,7.2746,137.47,137.4,107.278]
[1720459856850,7.2754,137.45,137.38,147.3759]
[1720459857250,0.0205202,137.44,137.39,0.17]
[1720459858166,7.2765,137.43,137.36,107.28]
[1720459858379,7.277,137.42,137.36,100.0]
[1720459858662,29.7992202,137.44,137.37,7.2795]
[1720459858872,0.17,137.43,137.34,200.0]
[1720459859105,0.17,137.43,137.34,107.2808]
[1720459859106,20.17,137.43,137.34,107.2808]
[1720459859284,7.2776,137.41,137.34,107.2808]
[1720459859770,22.5230202,137.44,137.38,125.476]
[1720459860077,22.5230202,137.44,137.39,0.17]
[1720459860250,28.4772695,137.44,137.36,100.0]
[1720459860450,0.17,137.43,137.32,100.0]
[1720459860775,0.17,137.42,137.32,18.2047]
[1720459860983,38.3615,137.43,137.34,100.0]
[1720459861143,7.278,137.4,137.34,100.0]
[1720459861343,38.3615,137.43,137.32,100.0]
[1720459861674,18.1968,137.39,137.31,100.0]
[1720459861855,20.0,137.38,137.31,100.0]
[1720459862050,20.0,137.38,137.32,18.2053]
[1720459862369,7.2803,137.36,137.29,225.4923]
[1720459862573,20.0,137.38,137.29,225.4923]
[1720459862574,7.3012202,137.35,137.29,18.2089]
[1720459862775,0.0205202,137.35,137.3,100.0]
[1720459863674,7.3014202,137.35,137.28,7.2843]
[1720459863870,7.2815,137.34,137.27,118.2114]
[1720459864273,7.2812,137.34,137.27,25.4961]
[1720459864472,0.0205202,137.35,137.29,7.2837]
[1720459864669,7.3013202,137.35,137.27,218.2114]
[1720459864864,0.0205202,137.35,137.27,218.2114]
[1720459865067,0.0205202,137.35,137.29,118.2092]
[1720459865489,0.0205202,137.35,137.29,125.4929]
[1720459865685,0.0205202,137.35,137.31,18.2066]
[1720459865999,0.0205202,137.35,137.31,25.4893]
[1720459866864,0.0205202,137.35,137.31,18.2066]
[1720459867174,0.0205202,137.35,137.3,7.4531]
[1720459867370,0.0205202,137.35,137.32,0.17]
[1720459867597,0.0205202,137.35,137.34,7.2811]
[1720459867798,0.0205202,137.35,137.33,7.2815]
[1720459868002,0.0205202,137.35,137.32,18.3755]
[1720459868293,0.0205202,137.35,137.33,107.2815]
[1720459868491,0.0205202,137.35,137.34,7.2811]
[1720459868705,0.0205202,137.35,137.32,40.2755]
[1720459868706,0.0205202,137.35,137.32,18.3755]
[1720459869576,0.0205202,137.35,137.29,118.2087]
[1720459869783,0.0205202,137.35,137.3,0.17]
[1720459869990,0.0205202,137.35,137.27,100.0]
[1720459870303,7.2823,137.32,137.26,18.2128]
[1720459870468,0.0205202,137.31,137.26,18.2128]
[1720459870788,0.0205202,137.31,137.28,125.4941]
[1720459870986,0.0205202,137.31,137.28,218.2101]
[1720459871187,0.0205202,137.31,137.29,7.2837]
[1720459871381,0.0205202,137.31,137.3,207.2833]
[1720459871601,0.0205202,137.31,137.3,7.2833]
[1720459871801,0.0205202,137.31,137.3,229.5233]
[1720459872500,0.0205202,137.31,137.3,229.3533]
[1720459873190,0.0205202,137.31,137.3,229.5233]
[1720459875492,2.02e-05,137.31,137.3,235.6553]
[1720459875697,7.61732558,137.44,137.4,7.2777]
[1720459875698,6.3435,137.43,137.4,7.2777]
[1720459875872,6.3435,137.43,137.41,7.2772]
[1720459876076,6.3435,137.46,137.42,7.2767]
[1720459876403,6.3435,137.46,137.42,118.1918]
[1720459876569,16.5502,137.48,137.45,7.4453]
[1720459876771,16.5502,137.48,137.44,125.6351]
[1720459877003,16.5502,137.48,137.44,18.1893]
[1720459877208,16.5502,137.48,137.44,125.4651]
[1720459877504,16.5502,137.48,137.45,7.4453]
[1720459877686,5.89147298,137.5,137.49,7.2732]
[1720459877886,16.5502,137.53,137.5,107.2725]
[1720459878198,6.3435,137.54,137.5,100.0]
[1720459879111,7.2716,137.53,137.48,0.17]
[1720459879298,6.3435,137.54,137.48,0.17]
[1720459879608,6.3435,137.54,137.5,0.17]
[1720459880107,13.6146,137.54,137.47,147.3594]
[1720459880409,13.6146,137.54,137.48,0.17]
[1720459880587,6.3435,137.54,137.48,0.17]
[1720459880786,6.3435,137.54,137.48,7.4437]
[1720459881100,13.6141,137.54,137.49,100.0]
[1720459881409,6.3435,137.54,137.5,0.17]
[1720459882487,6.3435,137.54,137.49,100.0]
[1720459882710,7.2712,137.53,137.48,0.17]
[1720459883180,7.2722,137.51,137.45,100.0]
[1720459883610,7.2727,137.5,137.43,129.1363]
[1720459884800,18.1782,137.53,137.45,100.0]
[1720459884989,18.1782,137.53,137.4,100.0]
[1720459884990,15.1275,137.51,137.4,100.0]
[1720459885193,7.2748,137.47,137.4,125.4721]
[1720459885394,20.0,137.5,137.4,100.0]
[1720459885395,24.8239,137.49,137.4,100.0]
[1720459885605,15.1275,137.46,137.36,100.0]
[1720459885808,20.17,137.45,137.33,100.0]
[1720459885989,7.2786,137.39,137.33,100.0]
[1720459886196,7.2793,137.38,137.33,100.0]
[1720459886417,7.2793,137.38,137.31,47.3487]
[1720459886418,7.2793,137.38,137.31,25.4887]
[1720459886714,7.2793,137.38,137.32,100.0]
[1720459886908,0.17,137.42,137.32,100.0]
[1720459887115,7.2786,137.39,137.32,107.2822]
[1720459887303,7.2781,137.4,137.33,7.2816]
[1720459887685,27.2786,137.39,137.32,100.0]
[1720459887891,7.2797,137.37,137.31,18.2061]
[1720459888597,7.2792,137.38,137.31,7.2826]
[1720459888816,27.2796,137.37,137.3,107.2832]
[1720459889140,7.2801,137.36,137.3,100.0]
[1720459889409,6.2588,137.34,137.27,100.0]
[1720459889630,6.2588,137.34,137.29,100.0]
[1720459890117,16.5886,137.37,137.32,100.0]
[1720459890411,16.5886,137.37,137.31,18.2064]
[1720459890917,16.5886,137.37,137.33,7.2813]
[1720459891217,15.84512665,137.42,137.36,0.17]
[1720459891218,27.15719995,137.42,137.36,0.17]
[1720459891405,27.15719995,137.42,137.37,7.2795]
[1720459891587,21.3455,137.42,137.38,100.0]
[1720459892025,21.3455,137.42,137.38,0.17]
[1720459892231,21.3455,137.42,137.38,107.449]
[1720459892529,15.0,137.55,137.38,107.449]
[1720459892530,13.8563,137.47,137.41,0.17]
[1720459892917,13.8563,137.47,137.4,100.0]
[1720459892918,7.2748,137.46,137.4,100.0]
[1720459893120,13.8563,137.47,137.4,107.2779]
[1720459893446,19.52177715,137.51,137.44,100.17]
[1720459893617,6.0387,137.51,137.45,7.2753]
[1720459894030,13.3109,137.51,137.44,207.4458]
[1720459894326,6.0387,137.51,137.44,129.3057]
[1720459894532,6.0387,137.51,137.44,100.17]
[1720459894723,6.0387,137.51,137.42,100.0]
[1720459894724,20.0,137.5,137.42,100.0]
[1720459894922,20.0,137.5,137.42,200.0]
[1720459895153,7.2739,137.48,137.42,200.0]
[1720459895326,20.0,137.5,137.44,100.0]
[1720459895518,7.2733,137.49,137.44,100.0]
[1720459895719,7.274,137.48,137.43,0.17]
[1720459896252,7.2744,137.47,137.42,100.0]
[1720459896452,13.3109,137.51,137.44,7.2758]
[1720459896615,6.0387,137.51,137.44,100.0]
[1720459896816,6.0387,137.51,137.47,7.2742]
[1720459897130,6.0387,137.51,137.46,100.0]
[1720459897445,6.0387,137.51,137.44,100.0]
[1720459897948,7.2728,137.5,137.44,100.0]
[1720459898138,6.0387,137.51,137.44,100.0]
[1720459898448,13.311,137.51,137.44,107.2755]
[1720459898649,6.0387,137.51,137.45,7.4452]
[1720459898827,6.0387,137.51,137.48,0.17]
[1720459899028,6.0387,137.51,137.47,100.0]
[1720459899319,6.0387,137.51,137.46,18.1865]
[1720459899523,13.3109,137.51,137.46,0.17]
[1720459899747,7.2727,137.5,137.43,125.4664]
[1720459899952,7.2736,137.49,137.44,0.17]
[1720459900117,7.2736,137.49,137.42,7.2765]
[1720459900323,7.2746,137.47,137.41,100.0]
[1720459900553,7.2759,137.44,137.39,100.0]
[1720459900723,7.2754,137.45,137.39,100.0]
[1720459900926,18.5225,137.5,137.39,118.196]
[1720459901228,7.2751,137.46,137.39,125.4741]
[1720459901536,7.2743,137.47,137.4,7.278]
[1720459901742,20.0,137.49,137.41,18.1929]
[1720459902041,0.17,137.48,137.41,18.1929]
[1720459902247,20.0,137.49,137.42,100.0]
[1720459902447,7.2738,137.48,137.41,25.4702]
[1720459902622,5.84044858,137.5,137.44,100.0]
[1720459902821,7.2731,137.5,137.44,100.0]
[1720459903054,6.0387,137.51,137.46,100.0]
[1720459903243,6.0387,137.51,137.47,0.17]
[1720459903627,13.3109,137.51,137.45,0.17]
[1720459904329,6.0387,137.51,137.47,100.0]
[1720459904543,15.493,137.52,137.47,100.0]
[1720459904751,15.493,137.52,137.45,125.6333]
[1720459904960,7.2723,137.51,137.45,100.17]
[1720459905134,15.493,137.52,137.45,222.03]
[1720459905456,15.493,137.52,137.46,7.2748]
[1720459905632,15.493,137.52,137.47,0.17]
[1720459905633,22.7647,137.52,137.47,0.17]
[1720459905829,7.2727,137.5,137.45,100.0]
[1720459906033,22.765,137.52,137.46,0.17]
[1720459906344,22.765,137.52,137.41,36.3854]
[1720459906345,15.493,137.52,137.43,100.0]
[1720459906545,7.2739,137.48,137.43,100.0]
[1720459906746,7.2739,137.48,137.41,107.2773]
[1720459906950,7.2743,137.47,137.41,100.0]
[1720459907146,13.5374,137.47,137.41,100.0]
[1720459907354,6.2631,137.47,137.42,7.2768]
[1720459907957,6.2631,137.47,137.43,100.0]
[1720459908128,13.536,137.5,137.43,100.0]
[1720459908335,13.536,137.5,137.44,0.17]
[1720459908768,7.2741,137.48,137.43,100.0]
[1720459908933,0.17,137.49,137.42,100.0]
[1720459909127,12.15133365,137.5,137.44,100.0]
[1720459909459,18.42433365,137.5,137.44,100.0]
[1720459909663,11.15133365,137.5,137.42,107.2767]
[1720459909841,0.17,137.49,137.4,100.0]
[1720459910045,7.275,137.46,137.4,100.0]
[1720459910231,11.15133365,137.5,137.43,100.0]
[1720459910557,7.2735,137.49,137.43,100.0]
[1720459911058,7.2744,137.47,137.42,0.17]
[1720459911702,7.2739,137.48,137.41,100.0]
[1720459911877,7.2739,137.48,137.4,118.3645]
[1720459911878,11.15133365,137.5,137.46,100.0]
[1720459912159,15.493,137.52,137.44,100.0]
[1720459912339,7.273,137.5,137.44,100.0]
[1720459912542,6.5947,137.51,137.43,0.17]
[1720459912747,6.5947,137.51,137.39,100.0]
[1720459912945,7.275,137.46,137.39,129.1382]
[1720459913860,7.2773,137.42,137.35,40.0616]
[1720459914165,7.2775,137.41,137.34,107.2811]
[1720459914360,7.2768,137.43,137.36,107.2797]
[1720459914748,18.1888,137.45,137.34,118.2025]
[1720459914938,7.2787,137.39,137.32,107.282]
[1720459915138,22.6945,137.4,137.33,7.2815]
[1720459915333,22.6945,137.4,137.34,100.0]
[1720459915743,15.4165,137.4,137.34,107.2811]
[1720459915937,22.6945,137.4,137.33,7.2815]
[1720459916357,7.2786,137.39,137.32,107.2821]
[1720459917377,22.6945,137.4,137.33,7.2816]
[1720459917872,15.4165,137.4,137.34,107.4511]
[1720459918056,15.4165,137.4,137.36,100.0]
[1720459918251,15.7746,137.44,137.38,107.2786]
[1720459918463,15.7746,137.44,137.39,18.1958]
[1720459918767,7.2769,137.42,137.35,7.4504]
[1720459918980,7.2778,137.41,137.35,0.17]
[1720459919849,15.7746,137.44,137.34,100.0]
[1720459920040,15.7746,137.44,137.3,100.0]
[1720459920041,38.3614,137.43,137.32,100.0]
[1720459920240,20.17,137.43,137.34,100.0]
[1720459920677,20.17,137.43,137.32,118.2052]
[1720459920859,20.17,137.43,137.34,118.2027]
[1720459921047,15.7746,137.44,137.38,100.0]
[1720459921251,23.0505,137.44,137.37,7.4492]
[1720459921477,15.7746,137.44,137.38,100.0]
[1720459921775,7.2783,137.4,137.33,107.2816]
[1720459921975,15.7746,137.44,137.33,100.0]
[1720459922143,6.5665,137.43,137.29,100.0]
[1720459922348,7.2801,137.36,137.3,7.2833]
[1720459922575,7.2791,137.38,137.3,18.208]
[1720459922755,7.2791,137.38,137.31,107.2824]
[1720459922958,7.2796,137.37,137.3,25.4911]
[1720459923271,7.2802,137.36,137.3,18.208]
[1720459923477,6.0348,137.35,137.26,125.4984]
[1720459923772,7.2822,137.32,137.26,118.2132]
[1720459924073,7.2822,137.32,137.26,100.0]
[1720459924280,7.2818,137.33,137.26,200.0]
[1720459924583,7.2813,137.34,137.27,7.2848]
[1720459924747,6.0348,137.35,137.29,100.0]
[1720459924948,6.0348,137.35,137.29,107.2833]
[1720459925144,6.0348,137.35,137.29,100.0]
[1720459925383,6.0348,137.35,137.3,7.4532]
[1720459925550,6.0348,137.35,137.3,29.3132]
[1720459925870,21.7058,137.43,137.34,107.2811]
[1720459926072,21.7058,137.43,137.39,7.278]
[1720459926073,6.134,137.43,137.39,7.278]
[1720459926270,15.5718,137.47,137.39,0.17]
[1720459926456,33.7586,137.47,137.36,121.86]
[1720459926693,7.2768,137.43,137.38,100.0]
[1720459926969,7.276,137.44,137.38,100.0]
[1720459927167,7.2772,137.42,137.37,0.17]
[1720459927369,39.62010911,137.47,137.39,0.17]
[1720459927686,15.5718,137.47,137.42,107.2765]
[1720459927898,16.0056,137.51,137.44,121.86]
[1720459928051,6.4261,137.52,137.47,7.4442]
[1720459928252,6.4261,137.52,137.47,0.17]
[1720459928665,16.0056,137.55,137.5,100.0]
[1720459929276,16.0056,137.55,137.48,0.17]
[1720459929477,16.0056,137.55,137.46,100.0]
[1720459929686,7.2707,137.54,137.47,100.17]
[1720459930177,7.2729,137.5,137.44,0.17]
[1720459930387,7.2722,137.51,137.44,0.17]
[1720459930576,7.2722,137.51,137.43,107.2762]
[1720459930759,20.17,137.5,137.41,107.2773]
[1720459930958,20.0,137.5,137.43,100.0]
[1720459931260,23.2756,137.55,137.48,100.0]
[1720459931684,16.0056,137.55,137.46,118.1861]
[1720459931879,16.0056,137.55,137.44,100.0]
[1720459932095,16.0056,137.55,137.43,18.1904]
[1720459932268,16.0056,137.55,137.42,100.0]
[1720459932587,7.2733,137.49,137.42,100.0]
[1720459932888,7.2725,137.51,137.45,100.0]
[1720459933375,7.2728,137.5,137.43,100.0]
[1720459933761,7.2732,137.49,137.42,18.1914]
[1720459933970,0.17,137.51,137.41,100.0]
[1720459934195,18.1824,137.5,137.41,100.0]
[1720459934353,7.2739,137.48,137.41,100.0]
[1720459934680,7.2733,137.49,137.43,100.0]
[1720459934882,7.2733,137.49,137.41,40.0532]
[1720459934883,13.15831873,137.54,137.46,7.2746]
[1720459935092,13.15791873,137.54,137.47,7.2742]
[1720459935293,5.88721873,137.54,137.47,18.1847]
[1720459935581,6.1672,137.56,137.48,100.0]
[1720459935763,7.2706,137.54,137.48,100.0]
[1720459935957,29.25341836,137.55,137.49,0.17]
[1720459936189,16.0056,137.55,137.48,100.0]
[1720459936364,16.0056,137.55,137.47,18.1847]
[1720459936559,16.0056,137.55,137.48,100.17]
[1720459936870,7.2706,137.54,137.48,100.17]
[1720459937058,23.2758,137.55,137.48,107.4437]
[1720459937257,7.2711,137.53,137.48,0.17]
[1720459937687,7.2707,137.54,137.48,100.17]
[1720459938088,16.0056,137.55,137.44,118.1889]
[1720459938262,7.2725,137.51,137.44,25.4646]
[1720459938462,20.17,137.54,137.47,100.0]
[1720459938782,20.0,137.54,137.47,100.0]
[1720459938986,7.2712,137.53,137.47,100.0]
[1720459939195,27.2706,137.54,137.47,107.2742]
[1720459939564,27.2706,137.54,137.48,0.17]
[1720459939771,12.14667686,137.56,137.52,100.0]
[1720459939971,5.97947686,137.56,137.53,8.50865723]
[1720459940284,16.2086,137.59,137.55,7.4399]
[1720459940491,22.8078,137.64,137.57,118.1725]
[1720459940698,22.8078,137.64,137.58,7.2683]
[1720459940983,22.8078,137.64,137.59,100.0]
[1720459941197,7.2628,137.69,137.61,118.1669]
[1720459941356,5.96472054,137.69,137.59,100.0]
[1720459941555,43.85864535,137.71,137.56,100.0]
[1720459941780,43.85864535,137.71,137.54,100.0]
[1720459941781,18.1642,137.64,137.54,100.0]
[1720459941971,18.1642,137.64,137.53,0.17]
[1720459941972,7.2682,137.59,137.53,100.17]
[1720459942172,7.2681,137.59,137.52,125.4497]
[1720459942373,7.2669,137.61,137.54,107.2701]
[1720459942858,7.2664,137.62,137.56,100.0]
[1720459943059,18.1555,137.7,137.58,118.1702]
[1720459943372,7.2648,137.65,137.58,108.71692297]
[1720459943678,7.2638,137.67,137.61,0.17]
[1720459943869,27.83052247,137.71,137.63,0.17]
[1720459944075,7.2623,137.7,137.63,0.17]
[1720459944476,7.2628,137.69,137.63,0.17]
[1720459944691,7.2642,137.67,137.62,100.0]
[1720459944866,27.83052247,137.71,137.64,100.0]
[1720459945066,27.83052247,137.71,137.65,0.17]
[1720459945391,7.2605,137.73,137.67,0.17]
[1720459945896,7.2605,137.73,137.67,0.67996433]
[1720459946405,15.8233,137.76,137.69,0.17]
[1720459946571,18.15,137.75,137.64,200.0]
[1720459946906,18.1519,137.73,137.62,125.4315]
[1720459947272,18.155,137.71,137.62,100.0]
[1720459947603,0.17,137.7,137.57,100.0]
[1720459947784,7.2647,137.66,137.59,100.0]
[1720459948097,7.2662,137.63,137.57,100.0]
[1720459948283,7.2662,137.63,137.55,218.1744]
[1720459948479,15.2852,137.65,137.55,218.1744]
[1720459948683,7.266,137.63,137.55,225.444]
[1720459948999,7.2663,137.62,137.55,118.1744]
[1720459949178,15.2852,137.65,137.58,18.1708]
[1720459949378,15.2852,137.65,137.57,100.0]
[1720459949579,7.2663,137.62,137.55,125.4441]
[1720459949782,22.5504,137.65,137.57,125.4404]
[1720459949979,15.2852,137.7,137.61,100.0]
[1720459950279,20.0,137.68,137.6,7.2673]
[1720459950475,19.25160966,137.69,137.62,100.0]
[1720459950697,15.2852,137.7,137.65,100.0]
[1720459950867,6.1878,137.73,137.65,100.0]
[1720459951067,6.1878,137.73,137.67,107.2636]
[1720459951299,6.1878,137.73,137.67,100.0]
[1720459951712,6.1878,137.73,137.68,0.17]
[1720459951873,22.5442,137.76,137.7,0.17]
[1720459952079,15.2852,137.76,137.69,0.17]
[1720459952377,22.5445,137.76,137.69,0.17]
[1720459952592,7.2606,137.73,137.67,200.0]
[1720459952772,15.2852,137.76,137.68,0.17]
[1720459952976,15.2852,137.76,137.69,100.0]
[1720459953178,15.2852,137.76,137.68,1.44963818]
[1720459953408,7.2611,137.72,137.66,0.17]
[1720459953716,33.433,137.76,137.66,0.17]
[1720459953717,0.17,137.75,137.66,0.17]
[1720459954014,7.2617,137.71,137.66,0.17]
[1720459954311,33.433,137.76,137.67,100.0]
[1720459954312,7.2609,137.73,137.67,100.0]
[1720459955407,33.433,137.76,137.66,0.17]
[1720459955618,7.263,137.69,137.64,0.17]
[1720459955788,7.2632,137.68,137.64,0.17]
[1720459955982,7.2632,137.68,137.61,107.2668]
[1720459956186,7.2641,137.67,137.61,100.0]
[1720459956742,18.1611,137.66,137.58,100.0]
[1720459956911,0.17,137.68,137.58,100.0]
[1720459957123,20.0,137.71,137.61,100.0]
[1720459957283,7.2625,137.7,137.64,100.0]
[1720459957486,27.2619,137.71,137.64,107.2653]
[1720459957815,7.2638,137.67,137.62,100.0]
[1720459958119,7.2638,137.67,137.6,107.2669]
[1720459958427,20.0,137.71,137.62,100.0]
[1720459958582,7.2642,137.66,137.61,100.0]
[1720459958917,20.0,137.71,137.61,100.0]
[1720459959315,7.2646,137.66,137.61,100.0]
[1720459959620,7.2638,137.67,137.61,100.0]
[1720459959908,0.17,137.7,137.63,100.0]
[1720459959909,7.2628,137.69,137.63,100.0]
[1720459960209,20.0,137.71,137.63,121.86]
[1720459960411,30.51606783,137.72,137.63,100.0]
[1720459960412,7.2627,137.69,137.63,100.0]
[1720459960632,7.2632,137.68,137.62,18.3354]
[1720459960818,7.2651,137.65,137.59,100.0]
[1720459961123,12.36256783,137.72,137.59,100.0]
[1720459961124,18.1601,137.67,137.59,100.0]
[1720459961422,7.2653,137.64,137.59,100.0]
[1720459961622,7.2649,137.65,137.59,100.0]
[1720459961823,7.2649,137.65,137.59,107.2679]
[1720459962191,7.2644,137.66,137.59,107.2679]
[1720459962487,7.2644,137.66,137.6,0.17]
[1720459962689,18.1562,137.7,137.61,7.2665]
[1720459962690,25.75864573,137.7,137.61,7.2665]
[1720459962892,18.1562,137.7,137.62,100.0]
[1720459963191,7.2628,137.69,137.64,100.0]
[1720459963385,12.36256783,137.72,137.65,7.2644]
[1720459963619,12.36256783,137.72,137.64,100.0]
[1720459963825,7.2626,137.7,137.65,21.86]
[1720459963987,7.2623,137.7,137.65,0.17]
[1720459964194,7.2635,137.68,137.64,100.0]
[1720459964395,6.6261,137.72,137.64,100.0]
[1720459964613,6.6261,137.72,137.63,0.17]
[1720459964813,7.2635,137.68,137.63,0.17]
[1720459965120,13.52336332,137.73,137.67,100.0]
[1720459965323,6.3299,137.76,137.71,125.415]
[1720459965499,28.32566845,137.8,137.72,0.17]
[1720459965700,7.2575,137.79,137.75,100.0]
[1720459965910,7.258,137.78,137.74,0.17]
[1720459966110,22.3897,137.8,137.73,0.17]
[1720459966111,7.2584,137.77,137.73,0.17]
[1720459966323,7.258,137.78,137.72,0.17]
[1720459966518,7.258,137.78,137.73,100.0]
[1720459967110,7.2585,137.77,137.72,0.17]
[1720459967307,40.5324,137.8,137.7,0.17]
[1720459967624,7.2591,137.76,137.7,0.17]
[1720459968344,29.6469,137.8,137.73,100.0]
[1720459968635,7.2584,137.78,137.71,129.2915]
[1720459968804,22.3897,137.8,137.71,147.4452]
[1720459969002,22.3897,137.8,137.69,100.0]
[1720459969250,7.259,137.76,137.69,107.2626]
[1720459969449,7.259,137.76,137.7,0.17]
[1720459969604,7.2596,137.75,137.7,0.17]
[1720459969804,7.2591,137.76,137.7,0.17]
[1720459970306,7.258,137.78,137.72,0.17]
[1720459970611,7.2577,137.79,137.73,100.0]
[1720459971034,7.259,137.76,137.69,107.2625]
[1720459971204,7.2595,137.75,137.7,0.17]
[1720459971533,7.259,137.76,137.71,100.0]
[1720459971733,18.1471,137.77,137.7,0.17]
[1720459972028,40.5322,137.8,137.7,0.17]
[1720459972247,22.3897,137.8,137.73,100.0]
[1720459972419,29.6467,137.8,137.73,107.2605]
[1720459972624,22.3897,137.8,137.72,18.3222]
[1720459972935,22.3897,137.8,137.69,118.1557]
[1720459973130,22.3897,137.8,137.69,100.0]
[1720459973334,22.3897,137.8,137.67,100.0]
[1720459973335,20.0,137.79,137.67,100.0]
[1720459973711,18.149,137.75,137.67,100.0]
[1720459974044,20.0,137.79,137.69,100.0]
[1720459974212,0.17,137.78,137.69,118.1558]
[1720459974531,7.2589,137.77,137.7,7.2619]
[1720459974713,7.2593,137.76,137.69,125.4182]
[1720459974912,0.17,137.78,137.69,125.4182]
[1720459974913,7.2595,137.75,137.7,0.17]
[1720459975112,0.17,137.78,137.67,100.0]
[1720459975113,7.2615,137.72,137.67,100.0]
[1720459975311,0.17,137.78,137.69,100.0]
[1720459975536,7.2609,137.73,137.68,100.0]
[1720459975740,7.2614,137.72,137.65,125.4263]
[1720459976236,7.2617,137.71,137.65,118.1617]
[1720459976435,7.2621,137.7,137.65,100.0]
[1720459976940,7.2627,137.69,137.63,100.0]
[1720459977248,7.2626,137.7,137.64,100.0]
[1720459977423,7.2627,137.69,137.63,100.0]
[1720459978339,18.1475,137.76,137.64,218.1623]
[1720459978522,7.2619,137.71,137.64,225.4272]
[1720459979130,18.1503,137.74,137.62,106.3686]
[1720459979342,7.2631,137.69,137.63,0.17]
[1720459979817,6.4315,137.73,137.63,0.17]
[1720459980020,0.17,137.72,137.64,100.0]
[1720459980250,7.2627,137.69,137.64,100.0]
[1720459980555,7.2639,137.67,137.62,100.0]
[1720459980761,7.263,137.69,137.62,107.2662]
[1720459981052,7.2637,137.67,137.61,18.1666]
[1720459981352,0.17,137.68,137.58,118.1703]
[1720459981647,18.3283,137.68,137.58,100.0]
[1720459981831,18.3283,137.68,137.54,100.0]
[1720459981832,22.3382,137.63,137.54,100.0]
[1720459982015,7.2674,137.61,137.54,100.0]
[1720459982219,7.2674,137.61,137.54,107.2704]
[1720459982547,7.2684,137.59,137.53,100.0]
[1720459982728,7.2675,137.6,137.53,100.0]
[1720459983043,22.3382,137.63,137.55,200.0]